[Event "*** Titled Tuesday Blitz"]
[Site "Chess.com"]
[Date "2020.05.05"]
[Round "10"]
[White "Kislov_Oleg"]
[Black "GelmanAlexander"]
[Result "0-1"]
[WhiteElo "2342"]
[BlackElo "2527"]
[TimeControl "180+1"]
[EndTime "11:58:48 PDT"]
[Termination "GelmanAlexander won by checkmate"]

1. d4 {[%clk 0:02:57.5]} 1... Nf6 {[%clk 0:02:59.7]} 2. Nc3 {[%clk 0:02:57.2]}
2... c5 {[%clk 0:02:56.8]} 3. dxc5 {[%clk 0:02:56.8]} 3... e6 {[%clk 0:02:56.2]}
4. e4 {[%clk 0:02:57.1]} 4... Nc6 {[%clk 0:02:55.9]} 5. Bd3 {[%clk 0:02:52.6]}
5... Bxc5 {[%clk 0:02:55]} 6. Bd2 {[%clk 0:02:51]} 6... a6 {[%clk 0:02:41]} 7.
Nf3 {[%clk 0:02:49]} 7... d6 {[%clk 0:02:38.1]} 8. O-O {[%clk 0:02:44.8]} 8...
b5 {[%clk 0:02:36.6]} 9. Qe2 {[%clk 0:02:40.4]} 9... Bb7 {[%clk 0:02:35.1]} 10.
e5 {[%clk 0:02:28.5]} 10... dxe5 {[%clk 0:02:10.6]} 11. Nxe5 {[%clk 0:02:24.2]}
11... Nd4 {[%clk 0:01:55.6]} 12. Qd1 {[%clk 0:01:59]} 12... h5 {[%clk
0:01:42.6]} 13. Bg5 {[%clk 0:01:51.7]} 13... Qc7 {[%clk 0:01:40.8]} 14. Re1
{[%clk 0:01:32.4]} 14... Ng4 {[%clk 0:01:26.1]} 15. Bf4 {[%clk 0:01:19.1]} 15...
O-O-O {[%clk 0:00:48.7]} 16. Ne4 {[%clk 0:00:53]} 16... Bxe4 {[%clk 0:00:27.3]}
17. Rxe4 {[%clk 0:00:53.1]} 17... g5 {[%clk 0:00:21]} 18. Bg3 {[%clk 0:00:47]}
18... Nf6 {[%clk 0:00:18.4]} 19. Nxf7 {[%clk 0:00:42.8]} 19... Qxf7 {[%clk
0:00:17.9]} 20. Re5 {[%clk 0:00:40.3]} 20... Bd6 {[%clk 0:00:15.3]} 21. Rxg5
{[%clk 0:00:39.7]} 21... Ng4 {[%clk 0:00:12.6]} 22. a4 {[%clk 0:00:31.4]} 22...
Bxg3 {[%clk 0:00:12.4]} 23. hxg3 {[%clk 0:00:30.9]} 23... Qxf2+ {[%clk 0:00:12]}
24. Kh1 {[%clk 0:00:31.3]} 24... Qxg3 {[%clk 0:00:11.1]} 25. Rc5+ {[%clk
0:00:16.4]} 25... Kb8 {[%clk 0:00:09.3]} 26. Qe1 {[%clk 0:00:12.3]} 26... Qh2#
{[%clk 0:00:08.5]} 0-1

[Event "*** Titled Tuesday Blitz"]
[Site "Chess.com"]
[Date "2020.05.05"]
[Round "10"]
[White "Corpescador"]
[Black "GM4life"]
[Result "1-0"]
[WhiteElo "2383"]
[BlackElo "2183"]
[TimeControl "180+1"]
[EndTime "11:58:50 PDT"]
[Termination "Corpescador won by resignation"]

1. e4 {[%clk 0:03:00.9]} 1... c5 {[%clk 0:02:58]} 2. Nf3 {[%clk 0:03:00.6]} 2...
d6 {[%clk 0:02:58.5]} 3. d4 {[%clk 0:03:00.6]} 3... cxd4 {[%clk 0:02:59.4]} 4.
Nxd4 {[%clk 0:03:01.1]} 4... Nf6 {[%clk 0:02:59.9]} 5. Nc3 {[%clk 0:03:01.4]}
5... a6 {[%clk 0:03:00.5]} 6. Be3 {[%clk 0:03:01.2]} 6... e5 {[%clk 0:03:00.4]}
7. Nb3 {[%clk 0:03:01.5]} 7... Be7 {[%clk 0:03:00.9]} 8. f3 {[%clk 0:03:01.5]}
8... Be6 {[%clk 0:03:00.2]} 9. Qd2 {[%clk 0:03:02]} 9... O-O {[%clk 0:02:59.7]}
10. O-O-O {[%clk 0:03:02.3]} 10... Nbd7 {[%clk 0:02:59.6]} 11. Kb1 {[%clk
0:03:01.9]} 11... b5 {[%clk 0:02:59.4]} 12. g4 {[%clk 0:03:02.1]} 12... b4
{[%clk 0:02:59.1]} 13. Ne2 {[%clk 0:03:01.9]} 13... a5 {[%clk 0:02:45]} 14. g5
{[%clk 0:03:01.8]} 14... Nh5 {[%clk 0:02:44.6]} 15. Ng3 {[%clk 0:02:57.2]} 15...
Nf4 {[%clk 0:02:39.6]} 16. h4 {[%clk 0:02:53.5]} 16... a4 {[%clk 0:02:35.5]} 17.
Nd4 {[%clk 0:02:53.2]} 17... exd4 {[%clk 0:02:20.8]} 18. Bxf4 {[%clk 0:02:52.5]}
18... Ne5 {[%clk 0:02:16.8]} 19. Qxd4 {[%clk 0:02:51.2]} 19... Nxf3 {[%clk
0:02:02.6]} 20. Qf2 {[%clk 0:02:27]} 20... b3 {[%clk 0:01:28.8]} 21. cxb3 {[%clk
0:01:56.3]} 21... axb3 {[%clk 0:01:25.5]} 22. a3 {[%clk 0:01:56.4]} 22... Bg4
{[%clk 0:01:21.3]} 23. Be2 {[%clk 0:01:52.1]} 23... Qc7 {[%clk 0:00:53.5]} 24.
Rc1 {[%clk 0:01:09.7]} 24... Qa7 {[%clk 0:00:47.9]} 25. Qxa7 {[%clk 0:00:57.1]}
25... Rxa7 {[%clk 0:00:43.8]} 26. Rc3 {[%clk 0:00:47.7]} 26... Ne5 {[%clk
0:00:23.1]} 27. Bxg4 {[%clk 0:00:47.5]} 27... Nxg4 {[%clk 0:00:23]} 28. Nf5
{[%clk 0:00:47.6]} 28... Nf2 {[%clk 0:00:19.1]} 29. Re1 {[%clk 0:00:38.1]} 29...
Re8 {[%clk 0:00:17.8]} 30. Rf3 {[%clk 0:00:34.3]} 30... Ng4 {[%clk 0:00:14.7]}
31. Nxe7+ {[%clk 0:00:28.5]} 31... Raxe7 {[%clk 0:00:12.9]} 32. Rxb3 {[%clk
0:00:28]} 32... g6 {[%clk 0:00:12.6]} 33. Bxd6 {[%clk 0:00:26.7]} 33... Rxe4
{[%clk 0:00:12.5]} 34. Rxe4 {[%clk 0:00:26.7]} 34... Rxe4 {[%clk 0:00:12.5]} 35.
Rb8+ {[%clk 0:00:27.3]} 35... Kg7 {[%clk 0:00:12]} 36. Bf8+ {[%clk 0:00:27.4]}
36... Kg8 {[%clk 0:00:09.7]} 37. Bh6+ {[%clk 0:00:27.3]} 1-0

[Event "*** Titled Tuesday Blitz"]
[Site "Chess.com"]
[Date "2020.05.05"]
[Round "10"]
[White "Gerasimenyuk_Miha"]
[Black "mfwagnerpeixoto"]
[Result "0-1"]
[WhiteElo "2325"]
[BlackElo "2215"]
[TimeControl "180+1"]
[EndTime "11:58:53 PDT"]
[Termination "mfwagnerpeixoto won by resignation"]

1. e4 {[%clk 0:02:59.7]} 1... c5 {[%clk 0:02:58.7]} 2. f4 {[%clk 0:02:57.6]}
2... Nc6 {[%clk 0:02:56]} 3. Nf3 {[%clk 0:02:57.4]} 3... e6 {[%clk 0:02:54.3]}
4. Nc3 {[%clk 0:02:56.3]} 4... a6 {[%clk 0:02:46.6]} 5. e5 {[%clk 0:02:54.3]}
5... d5 {[%clk 0:02:45.8]} 6. exd6 {[%clk 0:02:53.9]} 6... Qxd6 {[%clk
0:02:44.8]} 7. Bd3 {[%clk 0:02:53.9]} 7... Qxf4 {[%clk 0:02:42.9]} 8. O-O {[%clk
0:02:53]} 8... Nf6 {[%clk 0:02:33.2]} 9. Qe2 {[%clk 0:02:47.4]} 9... Bd6 {[%clk
0:02:25.6]} 10. Ne4 {[%clk 0:02:44.1]} 10... Nxe4 {[%clk 0:02:18.4]} 11. Bxe4
{[%clk 0:02:45]} 11... Nd4 {[%clk 0:02:15.6]} 12. Qf2 {[%clk 0:02:36.9]} 12...
Nxf3+ {[%clk 0:02:09]} 13. gxf3 {[%clk 0:02:35.7]} 13... f5 {[%clk 0:01:58.3]}
14. d4 {[%clk 0:02:33.3]} 14... Qxh2+ {[%clk 0:01:53.6]} 15. Qxh2 {[%clk
0:02:34.2]} 15... Bxh2+ {[%clk 0:01:53.7]} 16. Kxh2 {[%clk 0:02:32.8]} 16...
fxe4 {[%clk 0:01:53.2]} 17. fxe4 {[%clk 0:02:29.3]} 17... cxd4 {[%clk
0:01:52.7]} 18. Bf4 {[%clk 0:02:26.9]} 18... O-O {[%clk 0:01:43.5]} 19. Be5
{[%clk 0:02:24]} 19... Bd7 {[%clk 0:01:40.8]} 20. Bxd4 {[%clk 0:02:19.7]} 20...
Bc6 {[%clk 0:01:40.4]} 21. Rxf8+ {[%clk 0:02:11.4]} 21... Rxf8 {[%clk
0:01:39.8]} 22. Re1 {[%clk 0:02:11.8]} 22... Rf4 {[%clk 0:01:36.5]} 23. Rg1
{[%clk 0:02:02.4]} 23... g6 {[%clk 0:01:35.9]} 24. c3 {[%clk 0:01:55.9]} 24...
Rxe4 {[%clk 0:01:34.5]} 25. Rf1 {[%clk 0:01:55.9]} 25... Re2+ {[%clk 0:01:32.8]}
26. Kg3 {[%clk 0:01:55.9]} 26... Rxb2 {[%clk 0:01:25.5]} 27. Kg4 {[%clk
0:01:55.2]} 27... Be4 {[%clk 0:01:16.4]} 28. Kg5 {[%clk 0:01:53.4]} 28... Bf5
{[%clk 0:01:16.8]} 29. Kf6 {[%clk 0:01:53.2]} 29... e5 {[%clk 0:01:10.3]} 30.
Bxe5 {[%clk 0:01:44.9]} 30... Rb6+ {[%clk 0:01:08.9]} 31. Kg5 {[%clk 0:01:44.6]}
31... Kf7 {[%clk 0:01:03.7]} 32. Bd4 {[%clk 0:01:41.6]} 32... Rb2 {[%clk
0:00:57.7]} 33. Re1 {[%clk 0:01:39.3]} 33... Rxa2 {[%clk 0:00:54.2]} 34. Re5
{[%clk 0:01:35.1]} 34... Rg2+ {[%clk 0:00:52.2]} 35. Kf4 {[%clk 0:01:34.2]}
35... Rg4+ {[%clk 0:00:51.4]} 36. Kf3 {[%clk 0:01:34.2]} 36... h5 {[%clk
0:00:50.3]} 37. Rc5 {[%clk 0:01:33.3]} 37... Re4 {[%clk 0:00:46.7]} 38. Rc7+
{[%clk 0:01:32.3]} 38... Re7 {[%clk 0:00:46.5]} 39. Rc5 {[%clk 0:01:30.5]} 39...
h4 {[%clk 0:00:46.1]} 40. Be5 {[%clk 0:01:27.1]} 40... h3 {[%clk 0:00:45.2]} 41.
Rd5 {[%clk 0:01:21.8]} 41... Rd7 {[%clk 0:00:40.4]} 42. Rc5 {[%clk 0:01:20.8]}
42... Ke6 {[%clk 0:00:40.5]} 43. Bg3 {[%clk 0:01:20]} 43... Rd3+ {[%clk
0:00:38.5]} 44. Kf4 {[%clk 0:01:19.4]} 44... Rd2 {[%clk 0:00:32.8]} 45. Re5+
{[%clk 0:01:18.9]} 45... Kd7 {[%clk 0:00:32.7]} 46. Re1 {[%clk 0:01:12.6]} 46...
Rd3 {[%clk 0:00:28.4]} 47. c4 {[%clk 0:01:05.2]} 47... Rd4+ {[%clk 0:00:27.9]}
48. Ke5 {[%clk 0:01:02.1]} 48... Rxc4 {[%clk 0:00:27.6]} 49. Rd1+ {[%clk
0:01:01.9]} 49... Kc6 {[%clk 0:00:27.5]} 50. Rd6+ {[%clk 0:01:00.6]} 50... Kb5
{[%clk 0:00:27.1]} 51. Bf2 {[%clk 0:00:59.3]} 51... h2 {[%clk 0:00:25.1]} 52.
Rb6+ {[%clk 0:00:58.2]} 52... Ka4 {[%clk 0:00:24.8]} 0-1

[Event "*** Titled Tuesday Blitz"]
[Site "Chess.com"]
[Date "2020.05.05"]
[Round "10"]
[White "Jbd735"]
[Black "PowerThinking2650"]
[Result "1-0"]
[WhiteElo "2436"]
[BlackElo "2285"]
[TimeControl "180+1"]
[EndTime "11:58:54 PDT"]
[Termination "Jbd735 won by resignation"]

1. e4 {[%clk 0:03:00.9]} 1... e5 {[%clk 0:02:59.3]} 2. Nf3 {[%clk 0:03:00.7]}
2... Nc6 {[%clk 0:02:59.3]} 3. Bb5 {[%clk 0:03:00.2]} 3... a6 {[%clk 0:02:59.2]}
4. Ba4 {[%clk 0:03:00.5]} 4... Nf6 {[%clk 0:02:59.3]} 5. O-O {[%clk 0:02:58.9]}
5... Be7 {[%clk 0:02:57.3]} 6. Re1 {[%clk 0:02:59]} 6... b5 {[%clk 0:02:57.6]}
7. Bb3 {[%clk 0:02:59]} 7... d6 {[%clk 0:02:58.1]} 8. c3 {[%clk 0:02:58.7]} 8...
O-O {[%clk 0:02:58.5]} 9. h3 {[%clk 0:02:59]} 9... Bb7 {[%clk 0:02:56.1]} 10. d4
{[%clk 0:02:57.5]} 10... Re8 {[%clk 0:02:56]} 11. Nbd2 {[%clk 0:02:56.2]} 11...
Bf8 {[%clk 0:02:56]} 12. Bc2 {[%clk 0:02:53.3]} 12... h6 {[%clk 0:02:55.4]} 13.
Nf1 {[%clk 0:02:53.1]} 13... exd4 {[%clk 0:02:53.9]} 14. cxd4 {[%clk 0:02:50.5]}
14... Nb4 {[%clk 0:02:53.8]} 15. Ng3 {[%clk 0:02:25.3]} 15... Nxc2 {[%clk
0:02:52.9]} 16. Qxc2 {[%clk 0:02:26.2]} 16... d5 {[%clk 0:02:45.5]} 17. e5
{[%clk 0:02:22.3]} 17... Ne4 {[%clk 0:02:45.4]} 18. Bf4 {[%clk 0:02:21]} 18...
c5 {[%clk 0:02:42.6]} 19. Rad1 {[%clk 0:02:15.1]} 19... Nxg3 {[%clk 0:02:27.5]}
20. Bxg3 {[%clk 0:02:14.2]} 20... c4 {[%clk 0:02:27.6]} 21. Nh4 {[%clk
0:02:06.3]} 21... b4 {[%clk 0:02:18.4]} 22. f4 {[%clk 0:02:04.9]} 22... a5
{[%clk 0:02:14.6]} 23. f5 {[%clk 0:02:02.2]} 23... a4 {[%clk 0:02:10.6]} 24. Qe2
{[%clk 0:01:38.1]} 24... b3 {[%clk 0:02:07.9]} 25. axb3 {[%clk 0:01:32.4]} 25...
axb3 {[%clk 0:02:07.3]} 26. Qg4 {[%clk 0:01:29]} 26... Qg5 {[%clk 0:02:07]} 27.
Qf3 {[%clk 0:01:27.1]} 27... Ra2 {[%clk 0:02:00.9]} 28. Re2 {[%clk 0:01:25.7]}
28... Bb4 {[%clk 0:01:35.1]} 29. e6 {[%clk 0:01:23.9]} 29... fxe6 {[%clk
0:01:19.7]} 30. Rxe6 {[%clk 0:01:13.7]} 30... Rf8 {[%clk 0:01:13.2]} 31. Rg6
{[%clk 0:01:05.6]} 31... Qe7 {[%clk 0:00:49.8]} 32. Be5 {[%clk 0:01:02.5]} 32...
Rf7 {[%clk 0:00:43.6]} 33. f6 {[%clk 0:00:50.7]} 33... Qe6 {[%clk 0:00:35.6]}
34. Nf5 {[%clk 0:00:45.7]} 34... Bf8 {[%clk 0:00:16.9]} 35. Nxh6+ {[%clk
0:00:43.8]} 35... Kh7 {[%clk 0:00:16.9]} 36. Nxf7 {[%clk 0:00:33.5]} 36... Qxf7
{[%clk 0:00:15.6]} 37. Qh5+ {[%clk 0:00:26.8]} 37... Kg8 {[%clk 0:00:13.9]} 38.
fxg7 {[%clk 0:00:25.5]} 1-0

[Event "*** Titled Tuesday Blitz"]
[Site "Chess.com"]
[Date "2020.05.05"]
[Round "10"]
[White "Harut-1998"]
[Black "Zq1"]
[Result "1-0"]
[WhiteElo "2753"]
[BlackElo "2571"]
[TimeControl "180+1"]
[EndTime "11:58:55 PDT"]
[Termination "Harut-1998 won by resignation"]

1. d4 {[%clk 0:03:00.9]} 1... Nf6 {[%clk 0:02:58.9]} 2. Nf3 {[%clk 0:02:59.7]}
2... e6 {[%clk 0:02:58.4]} 3. c4 {[%clk 0:02:58.7]} 3... a6 {[%clk 0:02:57.5]}
4. g3 {[%clk 0:02:52.1]} 4... c5 {[%clk 0:02:56.6]} 5. d5 {[%clk 0:02:50.6]}
5... b5 {[%clk 0:02:49.1]} 6. Bg2 {[%clk 0:02:45.8]} 6... exd5 {[%clk
0:02:48.1]} 7. cxd5 {[%clk 0:02:43.6]} 7... d6 {[%clk 0:02:48]} 8. a4 {[%clk
0:02:39.8]} 8... Bb7 {[%clk 0:02:44]} 9. O-O {[%clk 0:02:38]} 9... Be7 {[%clk
0:02:40.6]} 10. Nh4 {[%clk 0:02:35]} 10... g6 {[%clk 0:02:35]} 11. axb5 {[%clk
0:02:15.2]} 11... axb5 {[%clk 0:02:33]} 12. Rxa8 {[%clk 0:02:15.8]} 12... Bxa8
{[%clk 0:02:33]} 13. Na3 {[%clk 0:02:14.9]} 13... b4 {[%clk 0:02:16]} 14. Nc4
{[%clk 0:02:12.8]} 14... O-O {[%clk 0:02:15.5]} 15. e4 {[%clk 0:02:10.5]} 15...
Nbd7 {[%clk 0:02:14.8]} 16. Qc2 {[%clk 0:02:08.4]} 16... Ng4 {[%clk 0:01:58.7]}
17. Nf3 {[%clk 0:02:02]} 17... Nb6 {[%clk 0:01:54.4]} 18. Nfd2 {[%clk
0:01:52.7]} 18... Bf6 {[%clk 0:01:48.1]} 19. Nxb6 {[%clk 0:01:48.4]} 19... Qxb6
{[%clk 0:01:47.1]} 20. Nc4 {[%clk 0:01:49.3]} 20... Qb5 {[%clk 0:01:33.2]} 21.
Nxd6 {[%clk 0:01:41.5]} 21... Qa6 {[%clk 0:01:33]} 22. Nc4 {[%clk 0:01:38.2]}
22... Rc8 {[%clk 0:01:22.2]} 23. Bh3 {[%clk 0:01:25.5]} 23... h5 {[%clk
0:01:18.5]} 24. f3 {[%clk 0:01:24.5]} 24... Bd4+ {[%clk 0:01:17.1]} 25. Kh1
{[%clk 0:01:23.2]} 25... b3 {[%clk 0:01:04.7]} 26. Qxb3 {[%clk 0:01:09.4]} 26...
Re8 {[%clk 0:01:03.6]} 27. fxg4 {[%clk 0:01:06.5]} 27... Rxe4 {[%clk 0:01:01.8]}
28. Bg2 {[%clk 0:00:59.7]} 28... Bxd5 {[%clk 0:00:59.8]} 29. Qb8+ {[%clk
0:00:58]} 29... Kg7 {[%clk 0:00:50.1]} 30. Nd2 {[%clk 0:00:57.3]} 30... Qe2
{[%clk 0:00:41.8]} 31. Nxe4 {[%clk 0:00:35.2]} 31... Bxe4 {[%clk 0:00:40.8]} 32.
Bh6+ {[%clk 0:00:28.4]} 32... Kh7 {[%clk 0:00:20.7]} 33. Rxf7+ {[%clk
0:00:26.6]} 33... Kxh6 {[%clk 0:00:20.7]} 34. Qf4+ {[%clk 0:00:15.2]} 34... g5
{[%clk 0:00:19.1]} 35. Qxe4 {[%clk 0:00:15.3]} 1-0

[Event "*** Titled Tuesday Blitz"]
[Site "Chess.com"]
[Date "2020.05.05"]
[Round "10"]
[White "arminmusovic"]
[Black "CroissantNeuf"]
[Result "0-1"]
[WhiteElo "2482"]
[BlackElo "2359"]
[TimeControl "180+1"]
[EndTime "11:58:55 PDT"]
[Termination "CroissantNeuf won by resignation"]

1. a3 {[%clk 0:03:00.9]} 1... e5 {[%clk 0:02:53.4]} 2. Nc3 {[%clk 0:03:01.8]}
2... d5 {[%clk 0:02:49.7]} 3. d4 {[%clk 0:03:01.9]} 3... exd4 {[%clk 0:02:44.1]}
4. Qxd4 {[%clk 0:03:01.1]} 4... Nf6 {[%clk 0:02:44.5]} 5. e4 {[%clk 0:02:58.1]}
5... Nc6 {[%clk 0:02:39.7]} 6. Bb5 {[%clk 0:02:56.7]} 6... Bd7 {[%clk
0:02:39.9]} 7. Bxc6 {[%clk 0:02:56.5]} 7... Bxc6 {[%clk 0:02:40.2]} 8. e5 {[%clk
0:02:57]} 8... Ne4 {[%clk 0:02:38.7]} 9. Nxe4 {[%clk 0:02:57.6]} 9... dxe4
{[%clk 0:02:37.8]} 10. Ne2 {[%clk 0:02:58.2]} 10... Qxd4 {[%clk 0:02:34.6]} 11.
Nxd4 {[%clk 0:02:59.1]} 11... Ba4 {[%clk 0:02:34.2]} 12. Be3 {[%clk 0:02:51.2]}
12... O-O-O {[%clk 0:02:31.2]} 13. O-O-O {[%clk 0:02:49.2]} 13... Re8 {[%clk
0:01:38.3]} 14. f4 {[%clk 0:02:23.2]} 14... exf3 {[%clk 0:01:35.5]} 15. Nxf3
{[%clk 0:02:22.2]} 15... Bc6 {[%clk 0:01:29]} 16. Bd4 {[%clk 0:02:00.7]} 16...
Be7 {[%clk 0:01:17.1]} 17. Rhe1 {[%clk 0:01:57.5]} 17... Bxf3 {[%clk 0:01:00.1]}
18. gxf3 {[%clk 0:01:57.3]} 18... Bg5+ {[%clk 0:01:00.7]} 19. Kb1 {[%clk
0:01:53.6]} 19... Re6 {[%clk 0:00:56.4]} 20. Re4 {[%clk 0:01:51.7]} 20... g6
{[%clk 0:00:43.4]} 21. Rg4 {[%clk 0:01:35.6]} 21... Be7 {[%clk 0:00:34]} 22. c3
{[%clk 0:01:33.7]} 22... Rd8 {[%clk 0:00:33.5]} 23. Kc2 {[%clk 0:01:33.7]} 23...
c5 {[%clk 0:00:29.4]} 24. Bf2 {[%clk 0:01:22.6]} 24... Rxd1 {[%clk 0:00:29.6]}
25. Kxd1 {[%clk 0:01:22.7]} 25... Rxe5 {[%clk 0:00:30.1]} 26. b4 {[%clk
0:01:16.3]} 26... Rh5 {[%clk 0:00:27]} 27. h4 {[%clk 0:01:12]} 27... Re5 {[%clk
0:00:19]} 28. Rf4 {[%clk 0:01:05.2]} 28... f5 {[%clk 0:00:15.6]} 29. Rc4 {[%clk
0:00:59.5]} 29... b5 {[%clk 0:00:15]} 30. Rf4 {[%clk 0:00:50]} 30... g5 {[%clk
0:00:15.3]} 31. hxg5 {[%clk 0:00:43.5]} 31... Bxg5 {[%clk 0:00:15.9]} 32. Bg3
{[%clk 0:00:40.5]} 32... Bxf4 {[%clk 0:00:15.2]} 33. Bxf4 {[%clk 0:00:41.4]}
33... Rd5+ {[%clk 0:00:15.5]} 34. Kc2 {[%clk 0:00:41.4]} 34... c4 {[%clk
0:00:15.7]} 35. Bh6 {[%clk 0:00:39.6]} 35... Rd3 {[%clk 0:00:15.4]} 36. f4
{[%clk 0:00:38.6]} 36... Rh3 {[%clk 0:00:15.4]} 37. Bg5 {[%clk 0:00:39]} 37...
h6 {[%clk 0:00:15.2]} 38. Bf6 {[%clk 0:00:38.8]} 38... Rh2+ {[%clk 0:00:15.1]}
39. Kc1 {[%clk 0:00:38.8]} 39... Kd7 {[%clk 0:00:15]} 40. Bd4 {[%clk 0:00:38.9]}
40... a6 {[%clk 0:00:14.9]} 41. Kb1 {[%clk 0:00:37.8]} 41... Ke6 {[%clk
0:00:15.5]} 42. Bc5 {[%clk 0:00:37]} 42... Kd5 {[%clk 0:00:15.7]} 43. Bg1 {[%clk
0:00:36.9]} 43... Rh1 {[%clk 0:00:14.6]} 44. Ka2 {[%clk 0:00:37.8]} 44... Rxg1
{[%clk 0:00:14.5]} 45. a4 {[%clk 0:00:38.7]} 0-1

[Event "*** Titled Tuesday Blitz"]
[Site "Chess.com"]
[Date "2020.05.05"]
[Round "10"]
[White "Alexander_Donchenko"]
[Black "Savagelittlemole"]
[Result "1-0"]
[WhiteElo "2780"]
[BlackElo "2573"]
[TimeControl "180+1"]
[EndTime "11:58:58 PDT"]
[Termination "Alexander_Donchenko won by resignation"]

1. e4 {[%clk 0:03:00.9]} 1... c5 {[%clk 0:02:59.7]} 2. Nf3 {[%clk 0:03:00.2]}
2... d6 {[%clk 0:03:00.2]} 3. Bb5+ {[%clk 0:03:00.3]} 3... Nd7 {[%clk
0:02:59.2]} 4. O-O {[%clk 0:02:58.5]} 4... a6 {[%clk 0:02:59.6]} 5. Bd3 {[%clk
0:02:58.4]} 5... Ngf6 {[%clk 0:02:59.1]} 6. Re1 {[%clk 0:02:58.9]} 6... g6
{[%clk 0:02:59.1]} 7. c3 {[%clk 0:02:58.7]} 7... Bg7 {[%clk 0:02:59.7]} 8. Bc2
{[%clk 0:02:59.2]} 8... O-O {[%clk 0:03:00.3]} 9. d4 {[%clk 0:02:59]} 9... cxd4
{[%clk 0:03:00.6]} 10. cxd4 {[%clk 0:02:59.9]} 10... b5 {[%clk 0:03:01.1]} 11.
Nc3 {[%clk 0:02:59.4]} 11... Bb7 {[%clk 0:03:01.1]} 12. a3 {[%clk 0:02:59]}
12... Rc8 {[%clk 0:03:01.6]} 13. Bg5 {[%clk 0:02:57.7]} 13... Nb6 {[%clk
0:03:00.2]} 14. Qe2 {[%clk 0:02:43]} 14... Nc4 {[%clk 0:02:58.9]} 15. Bb3 {[%clk
0:02:38.8]} 15... Na5 {[%clk 0:02:46.8]} 16. Ba2 {[%clk 0:02:38]} 16... h6
{[%clk 0:02:38.2]} 17. Bf4 {[%clk 0:02:33.2]} 17... Nh5 {[%clk 0:02:30.6]} 18.
Be3 {[%clk 0:02:28.2]} 18... Nc4 {[%clk 0:02:30.6]} 19. Bxc4 {[%clk 0:02:18.1]}
19... Rxc4 {[%clk 0:02:31.5]} 20. e5 {[%clk 0:02:18.5]} 20... Bxf3 {[%clk
0:02:27.2]} 21. Qxf3 {[%clk 0:02:18.3]} 21... dxe5 {[%clk 0:02:27]} 22. dxe5
{[%clk 0:02:18.4]} 22... Bxe5 {[%clk 0:02:14.9]} 23. Bxh6 {[%clk 0:02:17.9]}
23... Bg7 {[%clk 0:02:15.1]} 24. Rad1 {[%clk 0:02:17.8]} 24... Qb8 {[%clk
0:01:27.6]} 25. Bxg7 {[%clk 0:02:16.2]} 25... Nxg7 {[%clk 0:01:28.5]} 26. Nd5
{[%clk 0:02:09.5]} 26... Nf5 {[%clk 0:01:13]} 27. Nxe7+ {[%clk 0:02:04.3]} 27...
Nxe7 {[%clk 0:01:12.6]} 28. Rxe7 {[%clk 0:02:05.2]} 28... b4 {[%clk 0:01:08.5]}
29. g3 {[%clk 0:01:58.7]} 29... bxa3 {[%clk 0:01:07.6]} 30. bxa3 {[%clk
0:01:59.1]} 30... Qb2 {[%clk 0:01:02.7]} 31. Rdd7 {[%clk 0:01:52.8]} 31... Rc3
{[%clk 0:00:49.2]} 32. Qf4 {[%clk 0:01:41.2]} 32... Qc1+ {[%clk 0:00:46]} 33.
Qxc1 {[%clk 0:01:41.1]} 33... Rxc1+ {[%clk 0:00:46.9]} 34. Kg2 {[%clk
0:01:41.8]} 34... Rc3 {[%clk 0:00:46.9]} 35. Re3 {[%clk 0:01:41.5]} 35... Rfc8
{[%clk 0:00:43.3]} 36. Rdd3 {[%clk 0:01:37.7]} 36... Rxd3 {[%clk 0:00:41.7]} 37.
Rxd3 {[%clk 0:01:38.6]} 37... Rc6 {[%clk 0:00:41.9]} 38. h4 {[%clk 0:01:38]}
38... Kg7 {[%clk 0:00:41.7]} 39. g4 {[%clk 0:01:35.7]} 39... Rc4 {[%clk
0:00:41.1]} 40. Kg3 {[%clk 0:01:35.5]} 40... Ra4 {[%clk 0:00:41.6]} 41. f3
{[%clk 0:01:32]} 41... Ra5 {[%clk 0:00:40.4]} 42. f4 {[%clk 0:01:23.5]} 42...
Ra4 {[%clk 0:00:39.7]} 43. g5 {[%clk 0:01:22.5]} 43... Ra5 {[%clk 0:00:39.5]}
44. Kg4 {[%clk 0:01:22.3]} 44... Ra4 {[%clk 0:00:39.8]} 45. Rc3 {[%clk
0:01:16.7]} 45... Ra5 {[%clk 0:00:27.3]} 46. h5 {[%clk 0:01:14.9]} 46... gxh5+
{[%clk 0:00:20.7]} 47. Kxh5 {[%clk 0:01:15.8]} 47... f6 {[%clk 0:00:17.3]} 48.
Rc7+ {[%clk 0:01:14]} 48... Kf8 {[%clk 0:00:16.1]} 49. Kg6 {[%clk 0:01:06.4]}
49... fxg5 {[%clk 0:00:16.3]} 50. f5 {[%clk 0:01:06.7]} 50... Rxa3 {[%clk
0:00:15.7]} 51. f6 {[%clk 0:01:06.6]} 51... Ke8 {[%clk 0:00:14.5]} 52. f7+
{[%clk 0:01:06.7]} 52... Kf8 {[%clk 0:00:13.5]} 53. Rc8+ {[%clk 0:01:06.3]}
53... Ke7 {[%clk 0:00:13.4]} 54. f8=Q+ {[%clk 0:01:06.2]} 1-0